[Event "*** Titled Tuesday Blitz"]
[Site "Chess.com"]
[Date "2020.04.28"]
[Round "3"]
[White "KrolPawel92OnTwitch"]
[Black "Tesla37"]
[Result "1/2-1/2"]
[WhiteElo "2644"]
[BlackElo "2875"]
[TimeControl "180+1"]
[EndTime "10:30:48 PDT"]
[Termination "Game drawn by agreement"]

1. e4 {[%clk 0:03:00.9]} 1... c5 {[%clk 0:02:58.8]} 2. Nf3 {[%clk 0:02:58.3]}
2... e6 {[%clk 0:02:58.7]} 3. g3 {[%clk 0:02:58.4]} 3... Nc6 {[%clk 0:02:57.5]}
4. Bg2 {[%clk 0:02:57.6]} 4... Nf6 {[%clk 0:02:57.6]} 5. d3 {[%clk 0:02:50]}
5... d5 {[%clk 0:02:56.4]} 6. exd5 {[%clk 0:02:48.5]} 6... exd5 {[%clk
0:02:51.1]} 7. O-O {[%clk 0:02:48]} 7... h6 {[%clk 0:02:51.2]} 8. d4 {[%clk
0:02:46.9]} 8... Be6 {[%clk 0:02:47.4]} 9. Nbd2 {[%clk 0:02:43.5]} 9... c4
{[%clk 0:02:43]} 10. c3 {[%clk 0:02:40]} 10... Be7 {[%clk 0:02:41.1]} 11. Re1
{[%clk 0:02:39.2]} 11... O-O {[%clk 0:02:40.2]} 12. Nf1 {[%clk 0:02:34]} 12...
Re8 {[%clk 0:02:38.1]} 13. Bf4 {[%clk 0:02:33.1]} 13... Qb6 {[%clk 0:02:29.2]}
14. Qc2 {[%clk 0:02:31.7]} 14... Ne4 {[%clk 0:02:23.5]} 15. N3d2 {[%clk
0:02:31.5]} 15... Nf6 {[%clk 0:02:12.3]} 16. h3 {[%clk 0:02:25.2]} 16... Bf8
{[%clk 0:02:11.2]} 17. b4 {[%clk 0:02:15.6]} 17... a5 {[%clk 0:02:06.8]} 18. a3
{[%clk 0:02:10.9]} 18... g6 {[%clk 0:01:58.6]} 19. Ne3 {[%clk 0:02:05.3]} 19...
Ne7 {[%clk 0:01:30.3]} 20. Rab1 {[%clk 0:01:51.9]} 20... axb4 {[%clk 0:01:28.8]}
21. Rxb4 {[%clk 0:01:51.6]} 21... Qa6 {[%clk 0:01:27.1]} 22. Reb1 {[%clk
0:01:50.4]} 22... Ra7 {[%clk 0:01:26.5]} 23. a4 {[%clk 0:01:43.3]} 23... Nf5
{[%clk 0:01:21]} 24. Rb6 {[%clk 0:01:38.4]} 24... Qxa4 {[%clk 0:01:16.8]} 25.
Qxa4 {[%clk 0:01:38.3]} 25... Rxa4 {[%clk 0:01:16.6]} 26. Rxb7 {[%clk
0:01:31.6]} 26... Ra2 {[%clk 0:01:11.7]} 27. Ndf1 {[%clk 0:01:24.7]} 27... Rea8
{[%clk 0:00:57.1]} 28. Be5 {[%clk 0:01:21.7]} 28... Ne4 {[%clk 0:00:51.8]} 29.
Bxe4 {[%clk 0:01:14.8]} 29... dxe4 {[%clk 0:00:51.3]} 30. d5 {[%clk 0:01:14.7]}
30... Nxe3 {[%clk 0:00:51]} 31. dxe6 {[%clk 0:01:13.3]} 31... Nxf1 {[%clk
0:00:44.8]} 32. exf7+ {[%clk 0:01:12.4]} 32... Kh7 {[%clk 0:00:44.8]} 33. Rxf1
{[%clk 0:01:08.2]} 33... R8a7 {[%clk 0:00:43.1]} 34. Rxa7 {[%clk 0:00:57.4]}
34... Rxa7 {[%clk 0:00:41.8]} 35. Re1 {[%clk 0:00:57.9]} 35... Rxf7 {[%clk
0:00:41.4]} 36. Rxe4 {[%clk 0:00:57.6]} 36... Re7 {[%clk 0:00:35.6]} 37. f3
{[%clk 0:00:49.8]} 37... g5 {[%clk 0:00:33.9]} 38. Kf2 {[%clk 0:00:48]} 38...
Kg6 {[%clk 0:00:33.2]} 39. g4 {[%clk 0:00:46.9]} 39... Re6 {[%clk 0:00:31.7]}
40. Ke3 {[%clk 0:00:43.9]} 40... Bc5+ {[%clk 0:00:29.6]} 41. Bd4 {[%clk
0:00:44.1]} 41... Rc6 {[%clk 0:00:27.3]} 42. Bxc5 {[%clk 0:00:34.4]} 42... Rxc5
{[%clk 0:00:27.3]} 43. Kd4 {[%clk 0:00:33.6]} 43... Rc8 {[%clk 0:00:25.8]} 44.
f4 {[%clk 0:00:33.6]} 44... gxf4 {[%clk 0:00:24.6]} 45. Rxf4 {[%clk 0:00:34.3]}
45... h5 {[%clk 0:00:19.1]} 46. gxh5+ {[%clk 0:00:31.7]} 46... Kxh5 {[%clk
0:00:19.2]} 47. Kd5 {[%clk 0:00:32.2]} 47... Kg5 {[%clk 0:00:18.9]} 48. Rxc4
{[%clk 0:00:32]} 48... Rd8+ {[%clk 0:00:19.2]} 49. Kc5 {[%clk 0:00:32]} 49...
Rh8 {[%clk 0:00:19.1]} 50. h4+ {[%clk 0:00:31]} 50... Kf6 {[%clk 0:00:19.4]} 51.
Kb6 {[%clk 0:00:28.8]} 51... Ke6 {[%clk 0:00:19.6]} 52. Re4+ {[%clk 0:00:23]}
52... Kd7 {[%clk 0:00:19.3]} 53. Rd4+ {[%clk 0:00:22.8]} 53... Kc8 {[%clk
0:00:18.7]} 54. c4 {[%clk 0:00:21.4]} 54... Rh6+ {[%clk 0:00:18.6]} 55. Kb5
{[%clk 0:00:21]} 55... Kc7 {[%clk 0:00:18.9]} 56. c5 {[%clk 0:00:20.8]} 56...
Rh5 {[%clk 0:00:19.2]} 57. Rg4 {[%clk 0:00:20.1]} 57... Rh6 {[%clk 0:00:17.4]}
58. Rg7+ {[%clk 0:00:19.4]} 58... Kc8 {[%clk 0:00:17.6]} 59. Rg4 {[%clk
0:00:19.2]} 59... Kc7 {[%clk 0:00:17.9]} 60. Rc4 {[%clk 0:00:19.4]} 60... Kc8
{[%clk 0:00:17.8]} 61. Rd4 {[%clk 0:00:19.8]} 61... Kc7 {[%clk 0:00:17.9]} 62.
Re4 {[%clk 0:00:17]} 62... Kc8 {[%clk 0:00:18]} 63. Rf4 {[%clk 0:00:17.4]} 63...
Kc7 {[%clk 0:00:18.2]} 64. Rg4 {[%clk 0:00:18.3]} 64... Kc8 {[%clk 0:00:18.1]}
65. Rf4 {[%clk 0:00:14.6]} 65... Kc7 {[%clk 0:00:18.1]} 66. Re4 {[%clk
0:00:15.1]} 66... Kc8 {[%clk 0:00:18.1]} 67. Kc4 {[%clk 0:00:15.1]} 67... Kc7
{[%clk 0:00:18.1]} 68. Kd5 {[%clk 0:00:15.4]} 68... Rh5+ {[%clk 0:00:17.9]} 69.
Kd4 {[%clk 0:00:15.5]} 69... Rh6 {[%clk 0:00:17.9]} 70. Ke3 {[%clk 0:00:14.7]}
70... Kc6 {[%clk 0:00:16.9]} 71. Rc4 {[%clk 0:00:14]} 71... Kd5 {[%clk
0:00:16.4]} 72. Rd4+ {[%clk 0:00:09.5]} 72... Kxc5 {[%clk 0:00:16.3]} 73. Rd3
{[%clk 0:00:04.5]} 73... Rxh4 {[%clk 0:00:15.5]} 74. Rd2 {[%clk 0:00:04.5]}
1/2-1/2

[Event "*** Titled Tuesday Blitz"]
[Site "Chess.com"]
[Date "2020.04.28"]
[Round "3"]
[White "Shoytan"]
[Black "Pechen_Yeltsina"]
[Result "1-0"]
[WhiteElo "2592"]
[BlackElo "2754"]
[TimeControl "180+1"]
[EndTime "10:30:48 PDT"]
[Termination "Shoytan won by checkmate"]

1. e4 {[%clk 0:03:00.9]} 1... g6 {[%clk 0:02:59.7]} 2. d4 {[%clk 0:03:00.9]}
2... Bg7 {[%clk 0:03:00.3]} 3. Nc3 {[%clk 0:03:01.3]} 3... d6 {[%clk 0:03:00.8]}
4. Nf3 {[%clk 0:03:00.2]} 4... a6 {[%clk 0:03:01]} 5. a4 {[%clk 0:02:59.3]} 5...
b6 {[%clk 0:03:01.2]} 6. Bc4 {[%clk 0:02:59.1]} 6... e6 {[%clk 0:03:01.5]} 7.
Qe2 {[%clk 0:02:59.1]} 7... Bb7 {[%clk 0:03:01.6]} 8. O-O {[%clk 0:02:55.8]}
8... Nd7 {[%clk 0:03:01.2]} 9. h3 {[%clk 0:02:38]} 9... Ne7 {[%clk 0:03:00.5]}
10. Bf4 {[%clk 0:02:21]} 10... h6 {[%clk 0:03:00.3]} 11. Bd3 {[%clk 0:02:17.3]}
11... g5 {[%clk 0:02:49.8]} 12. Bh2 {[%clk 0:02:17]} 12... Nf6 {[%clk
0:02:37.2]} 13. e5 {[%clk 0:02:15]} 13... Nfd5 {[%clk 0:02:34.2]} 14. Nxd5
{[%clk 0:02:13.1]} 14... Nxd5 {[%clk 0:02:32.3]} 15. Be4 {[%clk 0:02:11.7]}
15... Bc6 {[%clk 0:02:18.7]} 16. c4 {[%clk 0:02:00.6]} 16... Ne7 {[%clk
0:02:18.9]} 17. d5 {[%clk 0:01:59.9]} 17... exd5 {[%clk 0:02:11.9]} 18. cxd5
{[%clk 0:01:58.8]} 18... Bb7 {[%clk 0:01:55.5]} 19. e6 {[%clk 0:01:53.8]} 19...
f5 {[%clk 0:01:48.7]} 20. Ne5 {[%clk 0:01:27.9]} 20... O-O {[%clk 0:01:46.6]}
21. Nf7 {[%clk 0:01:27.8]} 21... Rxf7 {[%clk 0:01:29]} 22. exf7+ {[%clk
0:01:27.3]} 22... Kxf7 {[%clk 0:01:29.9]} 23. Bf3 {[%clk 0:01:24.9]} 23... Qd7
{[%clk 0:01:24.4]} 24. Rfe1 {[%clk 0:01:21.8]} 24... Nxd5 {[%clk 0:01:17.8]} 25.
Qc4 {[%clk 0:01:15.7]} 25... c6 {[%clk 0:01:17.3]} 26. Bxd5+ {[%clk 0:01:13.1]}
26... cxd5 {[%clk 0:01:18.2]} 27. Qb4 {[%clk 0:01:13.2]} 27... f4 {[%clk
0:01:17]} 28. Qxb6 {[%clk 0:01:11.8]} 28... Bc6 {[%clk 0:01:17.2]} 29. Rac1
{[%clk 0:01:10.9]} 29... Rc8 {[%clk 0:01:10.6]} 30. Rc2 {[%clk 0:01:06.8]} 30...
Bxa4 {[%clk 0:01:05]} 31. Rxc8 {[%clk 0:01:05.9]} 31... Qxc8 {[%clk 0:01:05.9]}
32. Qxd6 {[%clk 0:01:06.4]} 32... Qd7 {[%clk 0:01:00.3]} 33. Qxd7+ {[%clk
0:00:56.3]} 33... Bxd7 {[%clk 0:01:01.2]} 34. g3 {[%clk 0:00:56.8]} 34... fxg3
{[%clk 0:00:58.2]} 35. Bxg3 {[%clk 0:00:56.7]} 35... Bxb2 {[%clk 0:00:58.7]} 36.
h4 {[%clk 0:00:54.4]} 36... d4 {[%clk 0:00:52.8]} 37. hxg5 {[%clk 0:00:52]}
37... hxg5 {[%clk 0:00:53.7]} 38. Be5 {[%clk 0:00:48.8]} 38... Ba4 {[%clk
0:00:52.5]} 39. Re4 {[%clk 0:00:43.8]} 39... Bc2 {[%clk 0:00:44.4]} 40. Re2
{[%clk 0:00:38.9]} 40... d3 {[%clk 0:00:30.8]} 41. Rxc2 {[%clk 0:00:38.9]} 41...
Bxe5 {[%clk 0:00:31.2]} 42. Rd2 {[%clk 0:00:38.3]} 42... Bc3 {[%clk 0:00:21.7]}
43. Rxd3 {[%clk 0:00:38.3]} 43... Bb4 {[%clk 0:00:21.9]} 44. Kg2 {[%clk
0:00:37.4]} 44... a5 {[%clk 0:00:21.6]} 45. Kf3 {[%clk 0:00:37.8]} 45... Kf6
{[%clk 0:00:20.5]} 46. Kg4 {[%clk 0:00:37.5]} 46... a4 {[%clk 0:00:19.5]} 47.
Rd4 {[%clk 0:00:25.3]} 47... Bc5 {[%clk 0:00:19.1]} 48. Rd8 {[%clk 0:00:17.8]}
48... a3 {[%clk 0:00:16.6]} 49. f3 {[%clk 0:00:17.2]} 49... Be7 {[%clk
0:00:12.4]} 50. Ra8 {[%clk 0:00:17.4]} 50... Ke6 {[%clk 0:00:07.4]} 51. Ra4
{[%clk 0:00:17.4]} 51... Ke5 {[%clk 0:00:07.4]} 52. Ra7 {[%clk 0:00:16.3]} 52...
Ke6 {[%clk 0:00:07.3]} 53. Ra5 {[%clk 0:00:16.2]} 53... Kf7 {[%clk 0:00:06.5]}
54. Kf5 {[%clk 0:00:16.5]} 54... Kg7 {[%clk 0:00:05]} 55. Ra7 {[%clk 0:00:16.7]}
55... Kf8 {[%clk 0:00:05.5]} 56. Ke6 {[%clk 0:00:14.8]} 56... Bb4 {[%clk
0:00:05.9]} 57. Kf6 {[%clk 0:00:14]} 57... Ke8 {[%clk 0:00:01.8]} 58. Kxg5
{[%clk 0:00:14.1]} 58... Be7+ {[%clk 0:00:01.8]} 59. Kf5 {[%clk 0:00:14.2]}
59... Kf7 {[%clk 0:00:02.7]} 60. f4 {[%clk 0:00:13.6]} 60... Ke8 {[%clk
0:00:03.6]} 61. Ke6 {[%clk 0:00:13.6]} 61... Bd8 {[%clk 0:00:04]} 62. Rxa3
{[%clk 0:00:12.2]} 62... Kf8 {[%clk 0:00:04.3]} 63. Ra8 {[%clk 0:00:12.1]} 63...
Ke8 {[%clk 0:00:05.2]} 64. f5 {[%clk 0:00:12.2]} 64... Kf8 {[%clk 0:00:06.1]}
65. Rxd8+ {[%clk 0:00:12.2]} 65... Kg7 {[%clk 0:00:07]} 66. f6+ {[%clk
0:00:13.1]} 66... Kh7 {[%clk 0:00:07.5]} 67. f7 {[%clk 0:00:14]} 67... Kg6
{[%clk 0:00:08.4]} 68. f8=Q {[%clk 0:00:14.4]} 68... Kh7 {[%clk 0:00:09.3]} 69.
Qf7+ {[%clk 0:00:14.4]} 69... Kh6 {[%clk 0:00:09.4]} 70. Rd1 {[%clk 0:00:13.1]}
70... Kg5 {[%clk 0:00:09.5]} 71. Rg1+ {[%clk 0:00:13]} 71... Kh6 {[%clk
0:00:10.4]} 72. Qg7+ {[%clk 0:00:12.9]} 72... Kh5 {[%clk 0:00:09.7]} 73. Qg5#
{[%clk 0:00:13.4]} 1-0

[Event "*** Titled Tuesday Blitz"]
[Site "Chess.com"]
[Date "2020.04.28"]
[Round "3"]
[White "YuriyKrykun"]
[Black "hongnhung1234"]
[Result "1/2-1/2"]
[WhiteElo "2392"]
[BlackElo "2199"]
[TimeControl "180+1"]
[EndTime "10:30:50 PDT"]
[Termination "Game drawn by repetition"]

1. Nf3 {[%clk 0:02:02.9]} 1... f5 {[%clk 0:02:58]} 2. d3 {[%clk 0:02:02.3]} 2...
Nf6 {[%clk 0:02:57.5]} 3. e4 {[%clk 0:02:02.6]} 3... d6 {[%clk 0:02:57.6]} 4.
exf5 {[%clk 0:02:01.3]} 4... Bxf5 {[%clk 0:02:58.5]} 5. d4 {[%clk 0:02:02.2]}
5... Nc6 {[%clk 0:02:58.7]} 6. Bd3 {[%clk 0:02:02.8]} 6... Bg4 {[%clk 0:02:48]}
7. c3 {[%clk 0:02:01.9]} 7... e5 {[%clk 0:02:47.3]} 8. dxe5 {[%clk 0:01:54.3]}
8... Nxe5 {[%clk 0:02:47.4]} 9. Be2 {[%clk 0:01:54.8]} 9... Nxf3+ {[%clk
0:02:41.7]} 10. Bxf3 {[%clk 0:01:55.7]} 10... Bxf3 {[%clk 0:02:39.4]} 11. Qxf3
{[%clk 0:01:56.6]} 11... Qe7+ {[%clk 0:02:32.2]} 12. Be3 {[%clk 0:01:55.6]}
12... O-O-O {[%clk 0:02:19]} 13. O-O {[%clk 0:01:47.7]} 13... Qe4 {[%clk
0:02:15.8]} 14. Qxe4 {[%clk 0:01:45.4]} 14... Nxe4 {[%clk 0:02:16.7]} 15. Nd2
{[%clk 0:01:46.3]} 15... Nxd2 {[%clk 0:02:14.7]} 16. Bxd2 {[%clk 0:01:47.2]}
16... Be7 {[%clk 0:02:15.2]} 17. Rfe1 {[%clk 0:01:41.7]} 17... Bf6 {[%clk
0:02:13.2]} 18. Re2 {[%clk 0:01:36.5]} 18... Rhe8 {[%clk 0:02:03.5]} 19. Kf1
{[%clk 0:01:34.4]} 19... Kd7 {[%clk 0:02:01.8]} 20. Rae1 {[%clk 0:01:29.1]}
20... Rxe2 {[%clk 0:02:01.4]} 21. Rxe2 {[%clk 0:01:30]} 21... Kc6 {[%clk
0:01:53.5]} 22. Re4 {[%clk 0:01:27.3]} 22... d5 {[%clk 0:01:49.1]} 23. Re6+
{[%clk 0:01:23.6]} 23... Kb5 {[%clk 0:01:47.4]} 24. Ke2 {[%clk 0:01:22.2]} 24...
c5 {[%clk 0:01:45.7]} 25. Kd3 {[%clk 0:01:21.1]} 25... b6 {[%clk 0:01:42]} 26.
b3 {[%clk 0:01:19.4]} 26... c4+ {[%clk 0:01:35.7]} 27. Kc2 {[%clk 0:01:18.6]}
27... Rc8 {[%clk 0:01:31]} 28. g4 {[%clk 0:01:13.9]} 28... cxb3+ {[%clk
0:01:25.4]} 29. axb3 {[%clk 0:01:11.7]} 29... Rc6 {[%clk 0:01:16.8]} 30. Rxc6
{[%clk 0:01:09.6]} 30... Kxc6 {[%clk 0:01:17.7]} 31. g5 {[%clk 0:01:10]} 31...
Be7 {[%clk 0:01:15.4]} 32. h4 {[%clk 0:01:09.4]} 32... g6 {[%clk 0:01:15.1]} 33.
Kd3 {[%clk 0:01:08.7]} 33... Bc5 {[%clk 0:01:13.9]} 34. Be3 {[%clk 0:01:06.9]}
34... Bd6 {[%clk 0:01:03.7]} 35. c4 {[%clk 0:01:05.3]} 35... dxc4+ {[%clk
0:01:02.5]} 36. Kxc4 {[%clk 0:01:06.2]} 36... b5+ {[%clk 0:00:59.8]} 37. Kc3
{[%clk 0:00:59.6]} 37... a5 {[%clk 0:00:58.6]} 38. f4 {[%clk 0:00:58]} 38... Kd5
{[%clk 0:00:56.7]} 39. Kd3 {[%clk 0:00:56]} 39... Ke6 {[%clk 0:00:54.1]} 40. Ke4
{[%clk 0:00:55.5]} 40... a4 {[%clk 0:00:53.7]} 41. bxa4 {[%clk 0:00:55.8]} 41...
bxa4 {[%clk 0:00:54.6]} 42. Bc1 {[%clk 0:00:54.9]} 42... Bc5 {[%clk 0:00:50.1]}
43. h5 {[%clk 0:00:53.3]} 43... a3 {[%clk 0:00:45.4]} 44. hxg6 {[%clk
0:00:49.7]} 44... hxg6 {[%clk 0:00:46.3]} 45. f5+ {[%clk 0:00:34.8]} 45... gxf5+
{[%clk 0:00:45.6]} 46. Kf3 {[%clk 0:00:33.8]} 46... a2 {[%clk 0:00:43.2]} 47.
Bb2 {[%clk 0:00:33.5]} 47... Bd6 {[%clk 0:00:39.1]} 48. g6 {[%clk 0:00:31.4]}
48... Be5 {[%clk 0:00:31.8]} 49. Bxe5 {[%clk 0:00:30.3]} 49... Kxe5 {[%clk
0:00:32.7]} 50. g7 {[%clk 0:00:31]} 50... a1=Q {[%clk 0:00:32.1]} 51. g8=Q
{[%clk 0:00:31.7]} 51... Qf1+ {[%clk 0:00:29.2]} 52. Ke3 {[%clk 0:00:29.2]}
52... f4+ {[%clk 0:00:28.1]} 53. Kd2 {[%clk 0:00:29.3]} 53... Qf2+ {[%clk
0:00:27.4]} 54. Kd1 {[%clk 0:00:29.7]} 54... Qd4+ {[%clk 0:00:26.3]} 55. Ke2
{[%clk 0:00:29.4]} 55... Qe4+ {[%clk 0:00:25.1]} 56. Kf2 {[%clk 0:00:25.3]}
56... Qe3+ {[%clk 0:00:24.5]} 57. Kf1 {[%clk 0:00:24.9]} 57... Ke4 {[%clk
0:00:20.2]} 58. Qe6+ {[%clk 0:00:24.1]} 58... Kf3 {[%clk 0:00:19.9]} 59. Qd5+
{[%clk 0:00:24.2]} 59... Kg4 {[%clk 0:00:17.1]} 60. Qg8+ {[%clk 0:00:24]} 60...
Kf5 {[%clk 0:00:17]} 61. Qf7+ {[%clk 0:00:24]} 61... Ke4 {[%clk 0:00:15.9]} 62.
Qe6+ {[%clk 0:00:24.1]} 62... Kd4 {[%clk 0:00:15.3]} 63. Qb6+ {[%clk 0:00:23.3]}
63... Kd3 {[%clk 0:00:14.7]} 64. Qb3+ {[%clk 0:00:23]} 64... Kd2 {[%clk
0:00:12.6]} 65. Qb2+ {[%clk 0:00:22.7]} 65... Kd1 {[%clk 0:00:11.4]} 66. Qb1+
{[%clk 0:00:22.9]} 66... Kd2 {[%clk 0:00:10]} 67. Qb2+ {[%clk 0:00:22.8]} 67...
Kd3 {[%clk 0:00:10.2]} 68. Qb3+ {[%clk 0:00:22.8]} 68... Ke4 {[%clk 0:00:09.6]}
69. Qe6+ {[%clk 0:00:21.5]} 1/2-1/2

[Event "*** Titled Tuesday Blitz"]
[Site "Chess.com"]
[Date "2020.04.28"]
[Round "3"]
[White "dimke2802"]
[Black "Kobalia"]
[Result "1/2-1/2"]
[WhiteElo "2505"]
[BlackElo "2708"]
[TimeControl "180+1"]
[EndTime "10:30:58 PDT"]
[Termination "Game drawn - insufficient material"]

1. d4 {[%clk 0:03:00.9]} 1... d5 {[%clk 0:02:59.4]} 2. c4 {[%clk 0:03:00.3]}
2... c6 {[%clk 0:02:59.6]} 3. Nc3 {[%clk 0:02:59]} 3... dxc4 {[%clk 0:02:57]} 4.
e4 {[%clk 0:02:58.1]} 4... b5 {[%clk 0:02:56.6]} 5. a4 {[%clk 0:02:58.3]} 5...
b4 {[%clk 0:02:56.7]} 6. Nb1 {[%clk 0:02:58.4]} 6... Nf6 {[%clk 0:02:53.7]} 7.
e5 {[%clk 0:02:57.9]} 7... Nd5 {[%clk 0:02:53.7]} 8. Bxc4 {[%clk 0:02:58.4]}
8... e6 {[%clk 0:02:51.2]} 9. Nf3 {[%clk 0:02:58.4]} 9... Be7 {[%clk 0:02:48.2]}
10. O-O {[%clk 0:02:57.7]} 10... Ba6 {[%clk 0:02:47.7]} 11. Nbd2 {[%clk
0:02:55.3]} 11... O-O {[%clk 0:02:47]} 12. Qe2 {[%clk 0:02:53.9]} 12... Qb6
{[%clk 0:02:43.5]} 13. a5 {[%clk 0:02:48.3]} 13... Qb7 {[%clk 0:02:34.4]} 14.
Nb3 {[%clk 0:02:46.9]} 14... Bxc4 {[%clk 0:02:32.5]} 15. Qxc4 {[%clk 0:02:46.6]}
15... Na6 {[%clk 0:02:32.4]} 16. Bg5 {[%clk 0:02:44.6]} 16... Rac8 {[%clk
0:02:17]} 17. Bxe7 {[%clk 0:02:31.4]} 17... Nxe7 {[%clk 0:02:16.2]} 18. Ng5
{[%clk 0:02:30.7]} 18... c5 {[%clk 0:02:13.6]} 19. dxc5 {[%clk 0:02:21.8]} 19...
Rcd8 {[%clk 0:01:30.2]} 20. Rad1 {[%clk 0:02:12.8]} 20... Rd5 {[%clk 0:01:25.2]}
21. Rxd5 {[%clk 0:01:46.4]} 21... Nxd5 {[%clk 0:01:20.9]} 22. Qe4 {[%clk
0:01:24.5]} 22... g6 {[%clk 0:01:18.9]} 23. h4 {[%clk 0:01:07.7]} 23... Qe7
{[%clk 0:00:55.2]} 24. Rc1 {[%clk 0:00:57]} 24... Rc8 {[%clk 0:00:53.4]} 25. c6
{[%clk 0:00:56.7]} 25... Nb8 {[%clk 0:00:51.2]} 26. Nd4 {[%clk 0:00:54.7]} 26...
b3 {[%clk 0:00:47.5]} 27. Qg4 {[%clk 0:00:36.7]} 27... Nb4 {[%clk 0:00:36.4]}
28. Ne4 {[%clk 0:00:31.5]} 28... Nd3 {[%clk 0:00:33.1]} 29. Nf6+ {[%clk
0:00:23.2]} 29... Kh8 {[%clk 0:00:30.9]} 30. Qg5 {[%clk 0:00:21.9]} 30... Qf8
{[%clk 0:00:27.1]} 31. Rc3 {[%clk 0:00:19.8]} 31... Nb4 {[%clk 0:00:25.9]} 32.
h5 {[%clk 0:00:15]} 32... Nd5 {[%clk 0:00:21.8]} 33. hxg6 {[%clk 0:00:14.5]}
33... Nxc3 {[%clk 0:00:18.9]} 34. Nxh7 {[%clk 0:00:11.6]} 34... Qg7 {[%clk
0:00:17.1]} 35. gxf7 {[%clk 0:00:10.7]} 35... Qxg5 {[%clk 0:00:14.8]} 36. Nxg5
{[%clk 0:00:11]} 36... Na4 {[%clk 0:00:13.6]} 37. Ngxe6 {[%clk 0:00:10.8]} 37...
Nxb2 {[%clk 0:00:13.1]} 38. f8=Q+ {[%clk 0:00:10.7]} 38... Rxf8 {[%clk
0:00:12.9]} 39. Nxf8 {[%clk 0:00:10.9]} 39... Nxc6 {[%clk 0:00:12.7]} 40. Nxb3
{[%clk 0:00:11]} 40... Nxe5 {[%clk 0:00:11]} 41. Ne6 {[%clk 0:00:10.8]} 41...
Nbc4 {[%clk 0:00:10.6]} 42. Nc7 {[%clk 0:00:10]} 42... Nc6 {[%clk 0:00:10.1]}
43. Nb5 {[%clk 0:00:09.5]} 43... a6 {[%clk 0:00:09.2]} 44. Nc7 {[%clk
0:00:09.7]} 44... Nb4 {[%clk 0:00:09]} 45. Nc5 {[%clk 0:00:09]} 45... Nxa5
{[%clk 0:00:07.7]} 46. N7xa6 {[%clk 0:00:09.1]} 46... Nd5 {[%clk 0:00:06.9]} 47.
Nb8 {[%clk 0:00:08.7]} 47... Nc4 {[%clk 0:00:06.4]} 48. Nbd7 {[%clk 0:00:09.6]}
48... Kg7 {[%clk 0:00:05]} 49. Ne4 {[%clk 0:00:09.5]} 49... Kg6 {[%clk 0:00:04]}
50. Ndc5 {[%clk 0:00:09.2]} 50... Kf5 {[%clk 0:00:03.6]} 51. f3 {[%clk
0:00:09.9]} 51... Kf4 {[%clk 0:00:03.3]} 52. Kf2 {[%clk 0:00:10.8]} 52... Kf5
{[%clk 0:00:03.2]} 53. g3 {[%clk 0:00:11.7]} 53... Ne5 {[%clk 0:00:03.3]} 54.
Nd6+ {[%clk 0:00:10.8]} 54... Kf6 {[%clk 0:00:03.3]} 55. Nce4+ {[%clk
0:00:10.2]} 55... Ke6 {[%clk 0:00:03.2]} 56. Nb5 {[%clk 0:00:10.3]} 56... Nb4
{[%clk 0:00:02.8]} 57. Nd4+ {[%clk 0:00:10]} 57... Kf7 {[%clk 0:00:02.9]} 58.
Nf5 {[%clk 0:00:10.2]} 58... Nbd3+ {[%clk 0:00:03]} 59. Kg2 {[%clk 0:00:09.1]}
59... Ne1+ {[%clk 0:00:02.9]} 60. Kf2 {[%clk 0:00:08.3]} 60... N1xf3 {[%clk
0:00:03.8]} 61. Ne3 {[%clk 0:00:07.7]} 61... Nh2 {[%clk 0:00:03.1]} 62. Kg2
{[%clk 0:00:07.7]} 62... Nhg4 {[%clk 0:00:03.2]} 63. Nxg4 {[%clk 0:00:08]} 63...
Nxg4 {[%clk 0:00:03.4]} 64. Kf3 {[%clk 0:00:08.9]} 64... Ne5+ {[%clk 0:00:03.7]}
65. Kf4 {[%clk 0:00:09.3]} 65... Ng6+ {[%clk 0:00:03.8]} 66. Kg5 {[%clk
0:00:09.3]} 66... Ne5 {[%clk 0:00:04]} 67. Kf5 {[%clk 0:00:09.5]} 67... Nf3
{[%clk 0:00:04.2]} 68. g4 {[%clk 0:00:09.6]} 68... Kg7 {[%clk 0:00:04.1]} 69.
Kf4 {[%clk 0:00:09.4]} 69... Nh4 {[%clk 0:00:03.9]} 70. Ng3 {[%clk 0:00:09.6]}
70... Ng6+ {[%clk 0:00:04]} 71. Kg5 {[%clk 0:00:10]} 71... Ne5 {[%clk
0:00:03.9]} 72. Nh5+ {[%clk 0:00:09.6]} 72... Kf8 {[%clk 0:00:04]} 73. Kf5
{[%clk 0:00:10]} 73... Nxg4 {[%clk 0:00:04.5]} 1/2-1/2